Cogmind - Beta 12 @@@ ROGUE MODE // 2023.04.16 @ 13:29:36 Player: Mr Goldstein Result: Destroyed by G-34 Mercenary with Small Laser Performance ------------- Evolutions (0) 0 Regions Visited (1) 200 Robots Destroyed (34) 170 Value Destroyed (845) 845 Prototype IDs (2) 40 Alien Tech Used (0) 0 Bonus (0) 0 TOTAL SCORE: 1255 Bonus ------- None Cogmind --------- Core Integrity 0/250 Matter 259/300 Energy 250/250 System Corruption 1% Temperature Cool (6) Movement Rolling (135) Ox3 Location -10/Materials Parts ------- > --- POWER (1) -------- Ion Engine > --- PROPULSION (2) --- Wheel Compact Wheel > --- UTILITY (2) ------ Huge Storage Unit Propulsion Shielding > --- WEAPON (2) ------- Assault Rifle Light Assault Rifle > --- INVENTORY (25) --- Light Ion Engine Light Nuclear Core Wheel Heat Sink Heat Sink Improved Heat Sink Huge Storage Unit Visual Processing Unit Propulsion Shielding Propulsion Shielding Propulsion Shielding Propulsion Shielding Propulsion Shielding Small Laser Particle Gun Light Assault Rifle Light Assault Rifle Light Assault Rifle Light Cannon Light Cannon Grenade Launcher Peak State ------------ > --- POWER ------------ Light Ion Engine > --- PROPULSION ------- Wheel Wheel > --- UTILITY ---------- Huge Storage Unit Propulsion Shielding > --- WEAPON ----------- Particle Gun Light Assault Rifle > --- INVENTORY -------- Light Ion Engine Light Nuclear Core Heat Sink Heat Sink Improved Heat Sink Huge Storage Unit Visual Processing Unit Propulsion Shielding Propulsion Shielding Propulsion Shielding Propulsion Shielding Propulsion Shielding Small Laser Light Assault Rifle Light Assault Rifle Light Assault Rifle [Rating: 10] Favorites ----------- Power Light Ion Engine Engine Light Ion Engine Propulsion Wheel Wheel Wheel Utility Huge Storage Unit Device Heat Sink Storage Huge Storage Unit Protection Light Armor Plating Weapon Light Assault Rifle Energy Gun Particle Gun Ballistic Gun Light Assault Rifle Build | -11 -10 ------- Run | Jun Mat Slots Evolved . | . . Power . | . . Propulsion . | . . Utility . | . . Weapon . | . . Parts Attached 24 | 7 17 Power 4 | 1 3 Engine 4 | 1 3 Core . | . . Reactor . | . . Propulsion 4 | 2 2 Treads . | . . Leg . | . . Wheel 4 | 2 2 Hover . | . . Flight . | . . Utility 8 | 1 7 Device 1 | . 1 Storage 3 | 1 2 Processor . | . . Hackware . | . . Protection 4 | . 4 Artifact . | . . Weapon 8 | 3 5 Energy Gun 1 | . 1 Energy Cannon . | . . Ballistic Gun 7 | 3 4 Ballistic Cannon . | . . Launcher . | . . Special Weapon . | . . Impact Weapon . | . . Slashing Weapon . | . . Piercing Weapon . | . . Special Melee Weapon . | . . Unidentified Prototypes . | . . Parts Lost 9 | . 9 Power 3 | . 3 Propulsion 1 | . 1 Utility 1 | . 1 Weapon 4 | . 4 Highest Loss Streak 3 | . 3 To Critical Strikes 1 | . 1 Average Slot Usage (%) 98 | . 98 Engine 13 | . 13 Wheel 27 | . 27 Device 1 | . 1 Storage 14 | . 14 Protection 12 | . 12 Ballistic Gun 27 | . 27 Naked Turns . | . . Heaviest Build 90 | 11 90 Greatest Support 26 | 20 26 Greatest Overweight (x) 8 | . 8 Average Overweight (x) 2 | . 3 Largest Inventory Capacity 25 | 8 25 Average Capacity 23 | 7 24 Most Carried 24 | 2 24 Average Carried 18 | 1 19 Final Capacity 25 | 8 25 Final Carried 24 | 2 24 Class Distribution -------------------- 76% | Mutant 23% | Scavenger-Mutant Dominant Class ---------------- Mutant | -10/Materials Resources | -11 -10 ----------- Run | Jun Mat Matter Collected 771 | 210 561 Remotely . | . . Salvage Created 1285 | . 1285 Parts 81 | . 81 Haulers Intercepted 2 | . 2 Recyclers Shooed 6 | . 6 Parts Field Recycled . | . . Retrieved Matter . | . . Parts Self-Destructed . | . . Prevented . | . . Kills | -11 -10 ------- Run | Jun Mat Combat Hostiles Destroyed 24 | . 24 Guns 24 | . 24 Classes Destroyed 8 | . 8 Worker 1 | . 1 Builder 2 | . 2 Hauler 2 | . 2 Recycler 2 | . 2 Operator 1 | . 1 Watcher 2 | . 2 Swarmer 3 | . 3 Grunt 21 | . 21 Best Kill Streak 3 | . 3 Combat Bots Only 3 | . 3 Max Kills in Single Turn 1 | . 1 Gunslinging . | . . Exploded . | . . Melee . | . . Uniques/NPCs Destroyed . | . . Combat | -11 -10 -------- Run | Jun Mat Damage Taken 1127 | . 1127 Core 259 | . 259 Absorbed by Shields . | . . Redirected to Shielding 14 | . 14 Regen/Repaired (Parts) 56 | . 56 Core Remaining (%) 100 | 100 . Volleys Fired 152 | . 152 Largest 2 | . 2 Hottest 40 | . 40 Shots Fired 302 | . 302 Gun 302 | . 302 Cannon . | . . Launcher . | . . Special . | . . Kinetic 302 | . 302 Thermal . | . . Explosive . | . . Electromagnetic . | . . Robot Hit Streak 20 | . 20 Robot Miss Streak 3 | . 3 Penetration Max . | . . Secondary Targets . | . . Shots Hit Robots 216 | . 216 Core Hits 74 | . 74 Critical Kills 1 | . 1 Critical Parts Destroyed 1 | . 1 Critical Strikes 2 | . 2 Destroy 2 | . 2 Melee Attacks . | . . Impact . | . . Slashing . | . . Piercing . | . . Sneak Attacks . | . . Combat Hostiles . | . . Follow-up Attacks . | . . Damage Inflicted 1916 | . 1916 Guns 1916 | . 1916 Cannons . | . . Explosions . | . . Melee . | . . Ramming . | . . Kinetic 1916 | . 1916 Thermal . | . . Explosive . | . . Electromagnetic . | . . Impact . | . . Slashing . | . . Piercing . | . . Highest Corruption 1 | . 1 Average Corruption 1 | . 1 Corruption Purged . | . . Corruption Blocked . | . . Effects 5 | . 5 Message Errors 4 | . 4 Matter Fused 1 | . 1 Overload Shots . | . . Overflow Damage . | . . Projectiles . | . . Explosions . | . . Melee . | . . Knockbacks . | . . Impact . | . . Kinetic . | . . Secondary . | . . Self-Inflicted Damage . | . . Shots . | . . Rammed . | . . Targets Rammed . | . . Kicked . | . . Crushed . | . . Highest Temperature 39 | . 39 Average Temperature 10 | . 10 Received Heat Transfer 543 | . 543 Siege Activations . | . . Robots Corrupted . | . . Combat Hostiles . | . . Parts Fried . | . . Impact Corruptions . | . . Robots Melted . | . . Combat Hostiles . | . . Parts Melted . | . . Heat Transferred . | . . Parts Sabotaged . | . . Parts Stolen . | . . Parts Stripped . | . . Power Chain Reactions . | . . Missiles Intercepted . | . . Alert | -11 -10 ------- Run | Jun Mat Peak Influence 194 | . 194 Initial . | . . Average 71 | . 72 Maximum Alert Level . | . . Low Security (%) 100 | 100 100 Level 1 . | . . Level 2 . | . . Level 3 . | . . Level 4 . | . . Level 5 . | . . High Security . | . . Max Security . | . . Squads Dispatched 10 | . 10 Investigation 9 | . 9 Extermination . | . . Reinforcement 1 | . 1 Assault . | . . Garrison . | . . Intercept . | . . Searches Triggered . | . . Construction Impeded . | . . Haulers Reinforced . | . . Active Scanning Responses . | . . Cargo Convoy Interrupts . | . . Stealth | -11 -10 --------- Run | Jun Mat Distress Signals 4 | . 4 Communications Jammed . | . . Distress Signals . | . . Times Spotted 39 | . 39 Peak Tracking Total 4 | . 4 Tactical Retreats 2 | . 2 Traps | -11 -10 ------- Run | Jun Mat Traps Triggered 2 | . 2 Indirectly . | . . Trap Hack Attempts . | . . Triggered . | . . Disarmed . | . . Reprogrammed . | . . Reused . | . . Traps Extracted . | . . Installed . | . . Triggered . | . . Machines | -11 -10 ---------- Run | Jun Mat Machines Disabled . | . . Max in Single Turn . | . . Machines Repaired . | . . Machines Sabotaged . | . . Overloaded Fab Kills . | . . Hacking | -11 -10 --------- Run | Jun Mat Machines Accessed 8 | . 8 Terminals 6 | . 6 Fabricators . | . . Repair Stations 1 | . 1 Recycling Units 1 | . 1 Scanalyzers . | . . Garrison Access . | . . Total Hacks 27 | . 27 Successful 16 | . 16 Failed 11 | . 11 Catastrophic 1 | . 1 Database Lockouts . | . . Manual 12 | . 12 Terminals 21 | . 21 Fabricators . | . . Repair Stations 5 | . 5 Recycling Units 1 | . 1 Scanalyzers . | . . Garrison Access . | . . Terminal Hacks 7 | . 7 Robot Analysis 1 | . 1 Prototype ID Bank 1 | . 1 Emergency Access Points 1 | . 1 Locate Traps 2 | . 2 Hauler Manifests 1 | . 1 Zone Layout 1 | . 1 Fabricator Hacks . | . . Repair Station Hacks 2 | . 2 Scan Component 1 | . 1 Repair 1 | . 1 Recycling Unit Hacks . | . . Scanalyzer . | . . Garrison Access Hacks . | . . Unauthorized Hacks 7 | . 7 Terminals 6 | . 6 Search 6 | . 6 Fabricators . | . . Repair Stations . | . . Recycling Units 1 | . 1 Tunnel 1 | . 1 Scanalyzers . | . . Garrison Access . | . . Data Cores Recovered . | . . Used . | . . Hacking Detections 6 | . 6 Full Trace Events 1 | . 1 Feedback Events . | . . Feedback Blocked . | . . Robot Schematics Acquired . | . . Robots Built . | . . Authchips . | . . Time . | . . Total Robot Build Rating . | . . Part Schematics Acquired . | . . Parts Built . | . . Authchips . | . . Time . | . . Total Part Build Rating . | . . Parts Repaired 1 | . 1 Time 26 | . 26 Parts Recycled . | . . Recycled Matter . | . . Retrieved Matter . | . . Retrieved Components . | . . Parts Scanalyzed . | . . Part Schematics Acquired . | . . Parts Damaged . | . . Bothacking | -11 -10 ------------ Run | Jun Mat Used RIF Installer . | . . Robots Hacked . | . . Non-combat . | . . Combat . | . . Robot Hacks Applied . | . . Relay Couplers Released . | . . Fabnet Peak Effective % . | . . Robots Rewired . | . . Allies Hacked . | . . Hacks Repelled . | . . Allies | -11 -10 -------- Run | Jun Mat Total Allies . | . . Largest Group . | . . Highest-Rated Group . | . . Highest-Rated Ally . | . . Total Orders . | . . Ally Attacks . | . . Total Damage . | . . Kills . | . . Allies Corrupted . | . . Allies Melted . | . . Intel | -11 -10 ------- Run | Jun Mat Robot Analysis Total 1 | . 1 Derelict Logs Recovered . | . . Drone Launches . | . . Drone Recoveries . | . . Exploration | -11 -10 ------------- Run | Jun Mat Turns Passed 2517 | 53 2464 Spaces Moved 1212 | 49 1163 Core 1 | 1 . Treads . | . . Legs . | . . Wheels 1211 | 48 1163 Hover . | . . Flight . | . . Fastest Speed 50 | 50 80 Average Speed 130 | 79 132 Slowest Speed 200 | 80 200 Overloaded Moves . | . . Propulsion Burnouts . | . . Robots Hopped . | . . Cave-ins Triggered . | . . Exploration Rate (%) 49 | 2 96 Regions Visited 1 Branch Regions . Pre-discovered Areas 1 | . 1 Known Exits Taken . | . . Unknown Exits Taken 1 | 1 . Scrap Searched . | . . Spaces Dug . | . . Terrain Destroyed . | . . Melee . | . . Projectile . | . . AOE . | . . Terrain Rammed . | . . Walls Destroyed . | . . Machines Disabled . | . . Actions | -11 -10 --------- Run | Jun Mat Total 1889 | 59 1830 Wait 469 | 3 466 Move 1211 | 48 1163 Hop . | . . Pick Up 28 | 1 27 Fast Attach 11 | 6 5 Attach 7 | . 7 Detach 1 | . 1 Swap 6 | 1 5 Drop 4 | . 4 Fire 152 | . 152 Melee . | . . Ram . | . . Kick . | . . Crush . | . . Escape Stasis . | . . Rewire . | . . Trap . | . . Miscellaneous . | . . Route ------- -11/Junkyard -10/Materials (discovered 4 exits: [*Mat x3] / [*Min]) History --------- Turn | Location | Event 21 | -11/Junkyard | Discovered new exit (range 15) 54 | -11/Junkyard | Entered Materials 305 | -10/Materials | Build established: Mutant 753 | -10/Materials | Lost 3 parts (1p1n1w) 1078 | -10/Materials | Discovered new exit (range 3) 1185 | -10/Materials | Discovered new exit (range 16) 1340 | -10/Materials | Repaired Lgt. Armor Plating 1364 | -10/Materials | Discovered new exit (range 13) 1447 | -10/Materials | Discovered new exit (range 16) 2212 | -10/Materials | Build established: Scavenger-Mutant 2304 | -10/Materials | Core integrity fell below 50% 2341 | -10/Materials | Core integrity fell below 20% 2518 | -10/Materials | Destroyed by G-34 Mercenary with Small Laser Last Messages --------------- 02334_ Ion Engine destroyed. 02342_ G-34 Mercenary destroyed. 02346_ K-01 Serf collects debris. 02347_ Acquired 46 matter. 02349_ K-01 Serf collects debris. 02351_ Acquired Ion Engine. 02353_ K-01 Serf collects debris. 02354_ Acquired 13 matter. 02357_ K-01 Serf collects debris. 02363_ Acquired Lgt. Ion Engine. 02368_ K-01 Serf collects debris. 02440_ Connecting with Terminal... >>Force(Search) SEARCH_COMPLETE[6] DISCOVERED[6xTerminal] COORDINATES_EXTRACTED 02440_ ALERT: Suspicious activity at Terminal M001. Dispatching Investigation squad. 02499_ Lgt. Assault Rifle destroyed. 02508_ G-34 Mercenary destroyed. Map ----- +----------------------------------------------------+ | # # #??????# "T" # """ # #?????????? | | # # #??????# """ [ # # #?????????? | | # # ###????# =%[ ######## ##????????? | | # # ###########+########## #????????? | | # + # % #????????? | | # # # ! #????????? | | # # # #????????? | | # # ######## ###########% #????????? | | # %! # #??????# #?????????# #####????????? | | ######+### ##?????# #?????????# #????????????# | | # ! # ####### ########??# ########?????# | | # """" !# ! #??# # [ #?????# | | # """"=[+%= #??# # #?????# | | # """" #% #??# #""" #?????# | | # # ############## #??# #""" #?????# | | # ###%###?????????????? #??# #""" #?????# | | # #?# #???????????????? #??# # #?????? | | # "T" #?# ################ #### ##+########### | | # """ #?# ## T ## | | # #?#%## ## | | #########?# ## ^^ ^ ^ ## | | ????#######+## """ ######### ##+########### | | ????# # """ # # # ????????? | | ????# """ # """ # """ # # ??????? | | ????# """ # """ # """ # # #?????? | | ????# """ #% """ #@""" # # """ #?????? | | ????# % + %g%= # # """ #?????? | | ????# %# %#[""" # #= """ #?????? | | ????# ! ### """ *#!""" # ########?????? | | ????# #?# = """ # """ # #??????####### | | ????# ! #?# """ # # #??????# | | ????############ """ # # ######## | | ??????######## """ # # # """ # """ | | ??????# ## ######### # "T" # """ | | ??????# ## #???????# #= # """ | | ??????# ## ###"T"# ##???????# [+% # | | ??????# ## #?##### #????????# # ####+## | | ??????# ## #?????# #????????# # + | | ??????# ## ####### #????????#^^ ########### | | ??????# ## # # #????????# %#####?????# | | ??????# ## # # #????????# ! !##?????# | | ####### ## # # #????????# !#?????# | | # # ## # =+ #?######## !#?????# | | # # ?# # !! =# #?# T # !#?????# | | # " # ??# # !! =# #?# # !#?????# | | # """ #+#+#### # ! # #?# # !##?????# | | # """ # ####### #?# # #####?????# | | # """ + # + #?# # #?????????# | | # "" # # # #?# """ # #?????????# | | # """ ### #!! # #?# """[+% ########### | +----------------------------------------------------+ Best States ------------- Heat Dissipation 35 Energy Generation 10 Energy Capacity 250 Matter Stores 300 Matter Capacity 300 Sight Range 16 Terrain Scan Density 10 Armor Coverage 150 Propulsion Shielding 33 Evasion (%) 44 Item Schematics ----------------- None Robot Schematics ------------------ None Fabricated ------------ Nothing Alien Tech Used ----------------- None Achievements -------------- None Challenges ------------ None Game ------ Seed SkeletonSpliceBoomstick Manual? 0 Play Time 00:18:12 Cumulative 110.3 hours Start 2023.04.16 @ 12:54:10 End 2023.04.16 @ 13:29:36 Sessions 1 Manual Loads 0 Difficulty Rogue Special Mode None Game No. 315 Rogue 315 Adventurer 0 Explorer 0 Win Type - Total 4 Types 4/0/0/0/0/0/0/0/0 Lore% 57 Gallery% 58 Achievement% 52 Wizard Run 0 Options --------- ASCII 0 Keyboard 0 Movement Arrows Keybinds 0 Fullscreen 1 Font 12/Smallcaps Map View 83x54 Tactical HUD 1 Map Filters NONE Filters NONE Steam 1 RUN: 5e807334-f60f-4950-bb7e-c4da76e4b7db